bitfinex-derivatives/quotes_SOLF0:USTF0_20260226
["timestamp","ask_amount","ask_price","bid_price","bid_amount"]
[1772130291745,3.20899961,84.77,84.735,10.6209]
[1772130292139,10.6155,84.779,84.735,10.6209]
[1772130292641,10.6155,84.779,84.741,10.6202]
[1772130292834,3.20899961,84.78,84.741,10.6202]
[1772130293447,3.5929745,84.796,84.75,3.67462815]
[1772130294536,3.5929745,84.796,84.755,10.6184]
[1772130294745,3.5929745,84.796,84.755,14.29302815]
[1772130296742,3.20899961,84.8,84.763,10.6174]
[1772130297148,3.20899961,84.8,84.756,10.6183]
[1772130297649,3.5929745,84.809,84.757,3.67462815]
[1772130297850,10.6132,84.798,84.758,10.618]
[1772130300650,3.20462461,84.79,84.757,3.67462815]
[1772130301648,3.20462461,84.79,84.757,14.29282815]
[1772130301844,3.20462461,84.81,84.76,3.20462461]
[1772130302050,3.20462461,84.82,84.761,3.67462815]
[1772130302350,10.6105,84.819,84.78,10.6152]
[1772130303148,10.6105,84.819,84.774,3.67462815]
[1772130303149,3.20462461,84.81,84.774,3.67462815]
[1772130303354,6.79759911,84.81,84.773,10.6162]
[1772130304052,3.20462461,84.8,84.766,10.617]
[1772130304248,3.20462461,84.79,84.741,3.67462815]
[1772130304553,3.20462461,84.78,84.741,3.67462815]
[1772130305353,3.20462461,84.78,84.744,10.6198]
[1772130305751,3.5929745,84.79,84.744,10.6198]
[1772130306056,3.20462461,84.78,84.744,10.6198]
[1772130306853,3.20462461,84.78,84.741,3.67462815]
[1772130307358,3.20462461,84.77,84.741,3.67462815]
[1772130307560,3.20462461,84.78,84.741,3.67462815]
[1772130307757,3.20462461,84.77,84.728,10.6217]
[1772130307958,3.20462461,84.79,84.741,3.67462815]
[1772130308456,3.20462461,84.78,84.741,3.67462815]
[1772130308957,3.20462461,84.78,84.749,10.6192]
[1772130309754,3.20462461,84.78,84.741,3.67462815]
[1772130310961,3.20462461,84.78,84.744,10.6198]
[1772130311464,3.20462461,84.78,84.744,14.29356193]
[1772130312368,3.20462461,84.81,84.761,3.67376193]
[1772130312860,3.20462461,84.8,84.766,10.617]
[1772130317363,3.6132323,84.809,84.766,10.617]
[1772130317669,3.20462461,84.81,84.774,3.67376193]
[1772130317868,3.6132323,84.824,84.774,3.67376193]
[1772130317869,3.20462461,84.82,84.774,3.67376193]
[1772130318972,3.20462461,84.81,84.776,10.6158]
[1772130321973,3.20462461,84.81,84.781,10.6151]
[1772130323774,3.20462461,84.83,84.784,3.67376193]
[1772130324785,3.20462461,84.81,84.771,3.67376193]
[1772130325577,3.20462461,84.8,84.771,3.67376193]
[1772130326177,3.6132323,84.809,84.771,3.67376193]
[1772130326777,3.6132323,84.809,84.772,10.6163]
[1772130327280,3.6132323,84.809,84.771,3.67376193]
[1772130327486,3.20462461,84.8,84.766,10.6171]
[1772130327684,3.20462461,84.8,84.754,3.67376193]
[1772130328985,3.20462461,84.8,84.759,10.6179]
[1772130329787,3.20462461,84.8,84.765,10.6171]
[1772130333578,3.20462461,84.8,84.765,14.29086193]
[1772130333775,3.20462461,84.8,84.771,10.6164]
[1772130335085,3.20462461,84.8,84.777,10.6156]
[1772130335784,3.20462461,84.8,84.77,10.6165]
[1772130337885,3.6132323,84.809,84.776,10.6158]
[1772130338180,3.70329644,84.823,84.777,3.87047435]
[1772130338376,3.20462461,84.81,84.777,3.87047435]
[1772130338990,3.20462461,84.8,84.761,3.87047435]
[1772130339985,3.57630188,84.789,84.749,3.93125428]
[1772130340193,3.20462461,84.78,84.749,3.93125428]
[1772130341092,3.20462461,84.79,84.749,3.93125428]
[1772130341491,3.20462461,84.76,84.723,3.93125428]
[1772130341989,3.20462461,84.75,84.723,10.6224]
[1772130343191,3.57630188,84.787,84.73,10.6216]
[1772130343394,3.20462461,84.76,84.73,10.6216]
[1772130346094,3.20462461,84.76,84.735,10.6209]
[1772130346295,3.20462461,84.77,84.735,10.6209]
[1772130347198,6.78092649,84.77,84.731,3.93125428]
[1772130347494,6.78092649,84.75,84.705,3.93125428]
[1772130347896,6.78092649,84.75,84.707,3.93125428]
[1772130348486,3.20462461,84.75,84.724,10.6222]
[1772130348797,3.20462461,84.76,84.719,3.93125428]
[1772130350196,3.57630188,84.759,84.719,3.93125428]
[1772130351999,14.19430188,84.759,84.721,10.6226]
[1772130352594,3.57630188,84.759,84.721,10.6226]
[1772130353096,3.57630188,84.769,84.727,10.6219]
[1772130354599,3.57630188,84.769,84.733,10.6212]
[1772130356500,3.57630188,84.78,84.737,3.93125428]
[1772130356700,6.78092649,84.78,84.737,3.93125428]
[1772130357303,10.6156,84.778,84.743,10.6199]
[1772130357698,6.78092649,84.78,84.743,10.6199]
[1772130358500,6.78092649,84.78,84.749,10.6192]
[1772130359206,3.57630188,84.78,84.749,10.6192]
[1772130359900,3.20462461,84.79,84.754,10.6185]
[1772130360109,3.57630188,84.809,84.761,3.93125428]
[1772130361008,10.6121,84.806,84.769,10.6166]
[1772130361308,3.57630188,84.809,84.769,10.6166]
[1772130361910,10.612,84.807,84.769,10.6166]
[1772130362112,3.57630188,84.799,84.751,3.93125428]
[1772130362712,3.57630188,84.799,84.754,10.6185]
[1772130363212,10.6132,84.798,84.755,3.93125428]
[1772130363811,10.6139,84.792,84.755,3.93125428]
[1772130364014,3.57630188,84.789,84.74,7.13462666]
[1772130364314,3.57630188,84.789,84.74,3.93125428]
[1772130364706,10.6147,84.786,84.743,10.6199]
[1772130364911,3.57630188,84.785,84.743,10.6199]
[1772130365214,3.57630188,84.785,84.743,3.93125428]
[1772130365415,3.57630188,84.785,84.756,10.6183]
[1772130365912,3.57630188,84.785,84.743,3.93125428]
[1772130366906,3.57630188,84.785,84.749,10.6192]
[1772130367212,3.57630188,84.785,84.743,3.93125428]
[1772130368915,14.19120188,84.784,84.743,3.93125428]
[1772130369211,3.57630188,84.779,84.693,3.93125428]
[1772130369405,3.20337238,84.73,84.693,3.93125428]
[1772130369604,3.63583627,84.729,84.679,3.60035652]
[1772130369804,3.20337238,84.72,84.679,3.60035652]
[1772130370010,3.20337238,84.71,84.661,3.60035652]
[1772130370211,5.30719958,84.766,84.661,3.60035652]
[1772130370212,3.20337238,84.7,84.661,3.60035652]
[1772130370512,6.83920865,84.7,84.646,3.60035652]
[1772130371417,3.20337238,84.69,84.646,3.60035652]
[1772130371916,3.20337238,84.69,84.653,10.6312]
[1772130372619,3.20337238,84.69,84.653,14.23155652]
[1772130373221,6.83920865,84.7,84.653,14.23155652]
[1772130373422,3.20337238,84.69,84.653,14.23155652]
[1772130373613,3.63583627,84.679,84.634,3.60035652]
[1772130374014,10.6282,84.678,84.634,3.60035652]
[1772130374516,3.63583627,84.679,84.634,3.60035652]
[1772130375916,3.20337238,84.67,84.634,3.60035652]
[1772130376216,3.63583627,84.669,84.619,3.60035652]
[1772130376623,3.20337238,84.66,84.619,3.60035652]
[1772130377220,6.83920865,84.66,84.619,3.60035652]
[1772130377518,3.63583627,84.659,84.609,10.6368]
[1772130377716,3.20337238,84.66,84.601,3.60035652]
[1772130377717,3.63583627,84.649,84.601,3.60035652]
[1772130377919,3.20337238,84.64,84.601,3.60035652]
[1772130378114,3.20337238,84.64,84.559,2.05613606]
[1772130378115,3.20337238,84.61,84.56,3.60035652]
[1772130378315,3.20337238,84.61,84.56,6.8037289]
[1772130378516,3.63583627,84.628,84.571,3.60035652]
[1772130378719,3.63583627,84.628,84.583,3.60035652]
[1772130378923,3.20337238,84.61,84.565,3.60035652]
[1772130379115,3.63583627,84.609,84.565,3.60035652]
[1772130379320,3.63583627,84.599,84.549,3.60035652]
[1772130380221,3.63583627,84.599,84.52,8.62466638]
[1772130380222,3.63583627,84.619,84.551,3.60035652]
[1772130380924,3.63583627,84.638,84.569,3.60035652]
[1772130382723,3.63583627,84.638,84.583,3.60035652]
[1772130382923,3.63583627,84.654,84.583,3.60035652]
[1772130383430,3.63583627,84.641,84.583,3.60035652]
[1772130384935,3.63583627,84.641,84.594,10.6386]
[1772130386035,3.63583627,84.641,84.598,10.6382]
[1772130386335,3.63583627,84.641,84.571,3.60035652]
[1772130387935,3.63583627,84.641,84.587,10.6394]
[1772130388142,3.63583627,84.641,84.588,3.60035652]
[1772130388939,3.63583627,84.641,84.599,10.638]
[1772130389540,3.63583627,84.641,84.599,14.23835652]
[1772130392441,3.63583627,84.659,84.609,3.60035652]
[1772130393735,3.63583627,84.656,84.571,3.60035652]
[1772130394541,3.63583627,84.653,84.571,3.60035652]
[1772130394938,3.63583627,84.653,84.595,3.60035652]
[1772130395840,3.79571116,84.645,84.597,10.6382]
[1772130396044,3.79571116,84.645,84.595,3.60035652]
[1772130396646,3.79571116,84.645,84.581,3.68145823]
[1772130396940,3.79571116,84.639,84.581,3.68145823]
[1772130398046,3.79571116,84.628,84.581,3.68145823]
[1772130398947,3.79571116,84.624,84.566,10.6421]
[1772130400145,10.6363,84.614,84.566,10.6421]
[1772130400346,3.79571116,84.624,84.573,10.6413]
[1772130401343,3.62298418,84.622,84.564,10.6424]
[1772130401542,3.62298418,84.622,84.552,3.79860132]
[1772130402254,3.62298418,84.619,84.552,3.79860132]
[1772130402951,3.62298418,84.611,84.563,10.6425]
[1772130403150,3.62298418,84.611,84.552,3.79860132]
[1772130403844,3.62298418,84.611,84.578,10.6407]
[1772130404645,3.62298418,84.611,84.547,3.79860132]
[1772130405245,3.62298418,84.625,84.57,3.79860132]
[1772130405447,165.2827,84.701,84.524,21.2948]
[1772130405448,3.62298418,84.619,84.555,3.79860132]
[1772130405648,3.62298418,84.596,84.555,3.79860132]
[1772130405850,3.62298418,84.596,84.521,3.79860132]
[1772130406243,10.6386,84.595,84.552,10.644]
[1772130407641,3.62298418,84.596,84.552,10.644]
[1772130407841,3.62298418,84.596,84.558,10.6431]
[1772130408243,3.62298418,84.609,84.553,3.79860132]
[1772130408445,3.62298418,84.626,84.561,3.79860132]
[1772130408839,8.62466638,84.65,84.561,3.79860132]
[1772130408840,3.62298418,84.617,84.561,3.79860132]
[1772130409350,3.62298418,84.604,84.551,10.644]
[1772130409849,3.62298418,84.604,84.542,3.79860132]
[1772130410450,3.62298418,84.604,84.565,10.6422]
[1772130410651,3.62298418,84.604,84.542,3.79860132]
[1772130411846,3.62298418,84.602,84.542,3.79860132]
[1772130412548,3.62298418,84.602,84.561,10.6428]
[1772130412752,10.6363,84.613,84.562,3.79860132]
[1772130413151,3.62298418,84.612,84.562,3.79860132]
[1772130413354,3.62298418,84.61,84.569,10.6417]
[1772130415148,10.6356,84.619,84.575,10.6409]
[1772130415550,14.25858418,84.619,84.575,10.6409]
[1772130415950,3.62298418,84.618,84.575,10.6409]
[1772130416154,3.62298418,84.614,84.541,3.79860132]
[1772130417559,3.62298418,84.612,84.568,10.642]
[1772130417950,10.6366,84.611,84.568,10.642]
[1772130418149,3.62298418,84.612,84.574,10.6411]
[1772130419352,29.14125067,84.68,84.567,3.79860132]
[1772130419353,3.62298418,84.61,84.567,14.44070132]
[1772130419553,3.62298418,84.61,84.567,3.79860132]
[1772130419953,10.6375,84.604,84.567,3.79860132]
[1772130420556,3.62298418,84.627,84.569,3.79860132]
[1772130420758,3.62298418,84.625,84.569,3.79860132]
[1772130420958,3.62298418,84.623,84.569,3.79860132]
[1772130421163,9.43408167,84.622,84.569,3.79860132]
[1772130421360,9.43408167,84.621,84.569,3.79860132]
[1772130421561,20.06948167,84.62,84.583,10.64]
[1772130421861,3.62298418,84.618,84.551,3.79860132]
[1772130422052,10.6365,84.612,84.569,10.6418]
[1772130423560,3.21870259,84.61,84.564,3.79860132]
[1772130423859,9.44656322,84.609,84.564,3.79860132]
[1772130424063,3.21870259,84.61,84.564,3.79860132]
[1772130424958,10.637,84.608,84.565,10.6422]
[1772130427865,3.21870259,84.61,84.564,3.79860132]
[1772130427866,3.62298418,84.611,84.564,3.79860132]
[1772130428469,10.6367,84.61,84.571,10.6416]
[1772130428667,10.6367,84.61,84.564,3.79860132]
[1772130428668,3.21870259,84.61,84.564,3.79860132]
[1772130429577,3.72031025,84.609,84.564,3.79860132]
[1772130429968,10.6376,84.603,84.565,10.6423]
[1772130430268,3.72031025,84.609,84.564,3.79860132]
[1772130430468,3.72031025,84.609,84.577,10.6407]
[1772130430768,3.21870259,84.62,84.571,3.90285115]
[1772130430972,3.72031025,84.619,84.571,3.90285115]
[1772130431165,10.6366,84.611,84.577,10.6408]
[1772130431565,10.6358,84.617,84.577,10.6408]
[1772130431960,3.72031025,84.616,84.577,10.6408]
[1772130432969,10.6366,84.611,84.577,10.6408]
[1772130433167,3.72031025,84.609,84.569,10.6418]
[1772130433362,10.6355,84.62,84.57,7.12155374]
[1772130433574,3.72031025,84.618,84.561,3.90285115]
[1772130433763,6.93901284,84.61,84.572,10.6414]
[1772130434070,6.93901284,84.61,84.561,3.90285115]
[1772130434464,10.637,84.608,84.57,10.6416]
[1772130434772,6.93901284,84.61,84.561,3.90285115]
[1772130434973,3.21870259,84.62,84.561,3.90285115]
[1772130435169,10.6362,84.615,84.581,10.6402]
[1772130436073,10.6362,84.615,84.574,10.6411]
[1772130436464,3.72031025,84.614,84.574,3.90285115]
[1772130436972,14.27500545,84.651,84.574,3.90285115]
[1772130436973,3.72031025,84.628,84.574,3.90285115]
[1772130437366,3.72031025,84.628,84.591,10.639]
[1772130439274,3.72031025,84.628,84.584,10.6398]
[1772130440177,3.72031025,84.628,84.584,14.54265115]
[1772130440578,3.21870259,84.63,84.589,3.90285115]
[1772130440774,3.21870259,84.64,84.589,3.90285115]
[1772130441077,9.47634811,84.639,84.589,3.90285115]
[1772130441269,9.47634811,84.638,84.603,10.6375]
[1772130441471,3.72031025,84.642,84.59,3.21870259]
[1772130441472,3.72031025,84.642,84.591,3.90285115]
[1772130441672,3.21870259,84.65,84.601,3.90285115]
[1772130441871,9.4823037,84.649,84.601,3.90285115]
[1772130442075,9.4823037,84.648,84.601,3.90285115]
[1772130442271,3.21870259,84.65,84.601,3.90285115]
[1772130442478,9.47804247,84.649,84.601,3.90285115]
[1772130442774,9.47804247,84.648,84.601,3.90285115]
[1772130442981,13.84920259,84.66,84.617,3.90285115]
[1772130443278,9.47851317,84.659,84.617,3.90285115]
[1772130443480,9.47851317,84.658,84.617,3.90285115]
[1772130443680,9.47851317,84.657,84.617,3.90285115]
[1772130443878,9.47851317,84.656,84.62,10.6354]
[1772130444080,13.84920259,84.66,84.62,10.6354]
[1772130444283,13.84920259,84.66,84.617,3.90285115]
[1772130444284,10.6309,84.656,84.617,3.90285115]
[1772130444480,3.21870259,84.65,84.617,3.90285115]
[1772130445478,3.72031025,84.639,84.581,3.90285115]
[1772130445682,3.21870259,84.63,84.581,3.90285115]
[1772130446478,3.21870259,84.63,84.594,10.6386]
[1772130446983,3.72031025,84.639,84.601,10.6378]
[1772130447277,21.2564,84.678,84.537,165.6018]
[1772130447278,3.72031025,84.649,84.602,3.90285115]
[1772130447885,3.72031025,84.649,84.607,10.637]
[1772130448982,10.632,84.648,84.607,10.637]
[1772130450788,3.72031025,84.649,84.614,10.6361]
[1772130452389,3.21870259,84.64,84.602,3.90285115]
[1772130452585,3.21870259,84.63,84.589,3.90285115]
[1772130452986,3.21870259,84.63,84.595,10.6385]
[1772130453183,3.72031025,84.639,84.595,10.6385]
[1772130453488,10.6333,84.638,84.595,10.6385]
[1772130453685,3.72031025,84.639,84.595,10.6385]
[1772130454487,14.35341025,84.639,84.601,10.6378]
[1772130455580,3.81132052,84.638,84.601,10.6378]
[1772130455780,3.81132052,84.636,84.594,10.6386]
[1772130456182,10.6336,84.635,84.594,10.6386]
[1772130456383,3.21870259,84.62,84.589,3.90285115]
[1772130457085,3.21870259,84.62,84.59,10.6392]
[1772130457285,7.03002311,84.63,84.59,10.6392]
[1772130457475,7.03002311,84.63,84.589,3.90285115]
[1772130457680,3.81132052,84.639,84.589,3.90285115]
[1772130457883,3.81132052,84.639,84.603,10.6374]
[1772130458280,3.21870259,84.63,84.579,3.64786095]
[1772130458485,3.81132052,84.629,84.579,3.64786095]
[1772130459083,3.81132052,84.619,84.579,3.64786095]
[1772130459388,3.21870259,84.61,84.579,3.64786095]
[1772130459590,3.21870259,84.61,84.572,10.6414]
[1772130462393,3.61011188,84.608,84.566,3.67190572]
[1772130463990,10.6373,84.606,84.567,10.6421]
[1772130465094,14.24741188,84.606,84.567,10.6421]
[1772130465702,3.61011188,84.606,84.566,3.67190572]
[1772130466603,3.21870259,84.61,84.579,10.6406]
[1772130466803,13.85420259,84.62,84.579,10.6406]
[1772130469800,3.61011188,84.619,84.579,10.6406]
[1772130473101,3.61011188,84.619,84.583,3.67190572]
[1772130473708,3.21870259,84.6,84.557,3.67190572]
[1772130474503,3.21870259,84.59,84.557,3.67190572]
[1772130474702,3.61011188,84.599,84.563,10.6425]
[1772130478914,3.21870259,84.6,84.569,10.6418]
[1772130480707,3.21870259,84.62,84.576,3.67190572]
[1772130480902,21.2599,84.664,84.576,3.67190572]
[1772130480903,3.21870259,84.61,84.576,3.67190572]
[1772130481416,3.61011188,84.599,84.55,3.21870259]
[1772130481707,3.61011188,84.599,84.551,3.67190572]
[1772130482508,10.639,84.592,84.556,10.6434]
[1772130482715,3.21870259,84.59,84.556,10.6434]
[1772130482918,3.21870259,84.59,84.549,10.6443]
[1772130483114,6.82881447,84.59,84.549,3.67190572]
[1772130484013,6.82881447,84.57,84.522,3.67190572]
[1772130484312,3.21870259,84.56,84.524,10.6474]
[1772130484618,6.82881447,84.56,84.522,3.67190572]
[1772130484808,6.82881447,84.56,84.523,10.6476]
[1772130485012,3.21870259,84.57,84.522,3.67190572]
[1772130485319,3.61011188,84.569,84.522,3.67190572]
[1772130485519,3.22235367,84.56,84.522,3.67190572]
[1772130486113,3.22235367,84.56,84.528,10.6469]
[1772130486819,14.25201188,84.569,84.528,10.6469]
[1772130487217,3.61011188,84.568,84.522,3.67190572]
[1772130487412,3.61011188,84.564,84.522,3.67190572]
[1772130487619,3.22235367,84.56,84.522,3.67190572]
[1772130487920,3.22235367,84.56,84.51,3.22235367]
[1772130487921,3.22235367,84.56,84.524,3.67190572]
[1772130488921,3.61011188,84.564,84.524,3.67190572]
[1772130490421,3.61011188,84.564,84.526,10.6472]
[1772130490720,3.61011188,84.564,84.526,14.41348485]
[1772130494117,3.22235367,84.57,84.529,3.76628485]
[1772130494318,3.92054272,84.576,84.529,3.76628485]
[1772130494923,3.92054272,84.569,84.529,3.76628485]
[1772130495326,14.56244272,84.569,84.529,14.41308485]
[1772130495625,3.92054272,84.568,84.529,3.76628485]
[1772130496926,3.92054272,84.568,84.531,10.6465]
[1772130500715,13.86285367,84.58,84.538,3.76628485]
[1772130500919,3.92054272,84.579,84.538,3.76628485]
[1772130501425,10.6408,84.578,84.54,3.76628485]
[1772130502323,14.56134272,84.578,84.54,3.76628485]
[1772130502827,3.92054272,84.577,84.54,3.76628485]
[1772130503120,3.92054272,84.577,84.542,10.6452]
[1772130503421,14.56014272,84.587,84.541,3.76628485]
[1772130504023,10.6401,84.583,84.548,10.6444]
[1772130504325,14.56064272,84.583,84.548,10.6444]
[1772130504827,3.92054272,84.582,84.548,10.6444]
[1772130506828,3.92054272,84.569,84.529,3.76628485]
[1772130507028,13.23777604,84.607,84.541,3.76628485]
[1772130507327,3.22235367,84.6,84.551,3.76628485]
[1772130507828,3.22235367,84.6,84.56,10.6429]
[1772130508027,10.6374,84.605,84.561,3.76628485]
[1772130508226,3.92054272,84.604,84.561,3.76628485]
[1772130509328,3.22235367,84.6,84.561,3.76628485]
[1772130510029,3.22235367,84.6,84.562,14.40888485]
[1772130510928,10.6382,84.598,84.562,14.40888485]
[1772130511523,10.6382,84.598,84.481,194.86372308]
[1772130511524,3.92054272,84.569,84.521,3.76628485]
[1772130511728,3.22235367,84.56,84.521,3.76628485]
[1772130512126,3.22235367,84.56,84.525,10.6472]
[1772130512320,7.14289639,84.56,84.521,3.76628485]
[1772130512923,17.78589639,84.56,84.521,3.76628485]
[1772130513726,10.6433,84.558,84.521,3.76628485]
[1772130514227,3.22235367,84.57,84.529,10.6469]
[1772130514427,3.22235367,84.57,84.529,14.41318485]
[1772130514632,3.92054272,84.569,84.529,14.41318485]
[1772130515228,3.92054272,84.589,84.535,3.76628485]
[1772130515632,3.22235367,84.58,84.542,10.6451]
[1772130515831,7.01311522,84.58,84.542,10.6451]
[1772130516233,7.01311522,84.58,84.535,3.76628485]
[1772130516234,10.6406,84.579,84.535,14.41228485]
[1772130518132,10.6406,84.579,84.537,10.6458]
[1772130518538,10.6406,84.579,84.538,3.63833551]
[1772130518940,10.6398,84.586,84.542,10.6452]
[1772130519132,10.6398,84.586,84.543,3.63833551]
[1772130520037,3.79076155,84.59,84.546,3.90097586]
[1772130520837,7.01311522,84.59,84.546,3.90097586]
[1772130521039,7.01311522,84.59,84.554,10.6437]
[1772130523237,10.6394,84.589,84.554,10.6437]
[1772130523443,14.42376727,84.589,84.554,10.6437]
[1772130523638,3.78436727,84.589,84.547,10.6446]
[1772130524441,3.78436727,84.589,84.552,10.6439]
[1772130525844,10.6396,84.587,84.552,10.6439]
[1772130527746,10.6396,84.587,84.548,3.90097586]
[1772130529750,10.6396,84.587,84.549,10.6443]
[1772130530149,3.78436727,84.589,84.549,3.90097586]
[1772130531940,3.78436727,84.589,84.555,10.6435]
[1772130532444,3.22235367,84.6,84.556,3.90097586]
[1772130532644,9.37742938,84.599,84.556,3.90097586]
[1772130532846,9.37742938,84.598,84.556,3.90097586]
[1772130533046,9.37742938,84.597,84.556,3.90097586]
[1772130533246,9.37742938,84.596,84.556,3.90097586]
[1772130533550,3.22235367,84.59,84.556,3.90097586]
[1772130534948,3.78436727,84.595,84.565,10.6423]
[1772130535651,3.22235367,84.6,84.566,3.90097586]
[1772130535850,9.37543806,84.599,84.566,3.90097586]
[1772130536051,9.37543806,84.598,84.566,3.90097586]
[1772130536250,9.37543806,84.597,84.566,3.90097586]
[1772130536452,3.78436727,84.599,84.566,3.90097586]
[1772130536648,3.22235367,84.62,84.571,3.90097586]
[1772130536852,3.78436727,84.623,84.581,3.90097586]
[1772130537446,3.78436727,84.635,84.587,3.90097586]
[1772130537648,3.78436727,84.635,84.591,3.90097586]
[1772130539044,3.78436727,84.635,84.598,10.6381]
[1772130539248,3.78436727,84.635,84.598,14.53907586]
[1772130541152,3.78436727,84.635,84.599,3.90097586]
[1772130541349,3.78436727,84.648,84.602,3.90097586]
[1772130541547,3.22235367,84.67,84.621,3.90097586]
[1772130541950,3.78436727,84.673,84.627,3.90097586]
[1772130542154,3.22235367,84.67,84.627,3.90097586]
[1772130542452,7.00672094,84.67,84.627,3.90097586]
[1772130543461,7.00672094,84.67,84.631,10.634]
[1772130543661,7.00672094,84.67,84.632,3.90097586]
[1772130543856,3.22235367,84.68,84.632,3.90097586]
[1772130544061,3.22235367,84.68,84.634,3.90097586]
[1772130544355,3.78436727,84.686,84.641,3.90097586]
[1772130544561,3.78436727,84.679,84.621,3.90097586]
[1772130544759,3.78436727,84.679,84.63,3.22235367]
[1772130544960,10.6273,84.685,84.631,3.90097586]
[1772130545358,3.22235367,84.68,84.635,3.90097586]
[1772130546359,3.78436727,84.679,84.635,3.90097586]
[1772130546864,3.78436727,84.678,84.635,3.90097586]
[1772130548061,3.78436727,84.692,84.64,3.21342878]
[1772130548262,3.78436727,84.692,84.641,3.90097586]
[1772130548861,3.78436727,84.692,84.649,3.90097586]
[1772130549066,3.21342878,84.69,84.649,3.90097586]
[1772130549469,10.6273,84.685,84.649,3.90097586]
[1772130551369,3.78436727,84.689,84.649,3.90097586]
[1772130551560,3.21342878,84.7,84.649,3.90097586]
[1772130551962,7.03706348,84.7,84.649,3.90097586]
[1772130552164,3.8236347,84.699,84.649,3.90097586]
[1772130552861,3.8236347,84.699,84.651,3.73885943]
[1772130553271,3.21342878,84.69,84.651,3.73885943]
[1772130553470,3.8236347,84.699,84.651,3.73885943]
[1772130554071,3.8236347,84.689,84.639,3.73885943]
[1772130554472,3.21342878,84.68,84.639,3.73885943]
[1772130554680,3.8236347,84.689,84.63,3.21342878]
[1772130554681,3.8236347,84.689,84.648,3.73885943]
[1772130555772,3.8236347,84.689,84.65,3.73885943]
[1772130556477,3.21342878,84.68,84.65,3.73885943]
[1772130557283,3.21342878,84.69,84.652,3.73885943]
[1772130557667,21.76123361,84.782,84.652,3.73885943]
[1772130557668,3.8236347,84.717,84.652,3.73885943]
[1772130557978,3.8236347,84.708,84.667,3.73885943]
[1772130558173,3.21342878,84.69,84.651,3.73885943]
[1772130558879,3.21342878,84.69,84.654,10.6311]
[1772130559186,3.21342878,84.69,84.655,3.73885943]
[1772130559874,3.21342878,84.69,84.656,10.6308]
[1772130560678,3.8236347,84.699,84.662,10.6301]
[1772130562581,3.21342878,84.71,84.666,3.73885943]
[1772130563882,3.21342878,84.71,84.671,10.6289]
[1772130564083,3.8236347,84.729,84.672,3.73885943]
[1772130564888,14.4454347,84.729,84.69,10.6266]
[1772130565682,3.8236347,84.729,84.69,10.6266]
[1772130566485,10.6219,84.728,84.69,10.6266]
[1772130566790,3.21342878,84.73,84.693,3.73885943]
[1772130567290,3.8236347,84.729,84.68,3.73885943]
[1772130567984,3.21342878,84.72,84.68,3.73885943]
[1772130568189,3.8236347,84.729,84.68,3.73885943]
[1772130568987,14.4454347,84.729,84.688,10.6268]
[1772130569283,3.21342878,84.72,84.688,10.6268]
[1772130569679,3.8236347,84.728,84.688,10.6268]
[1772130569886,10.6223,84.725,84.688,10.6268]
[1772130570698,3.8236347,84.728,84.694,10.626]
[1772130571184,3.8236347,84.728,84.67,3.21342878]
[1772130571185,3.8236347,84.728,84.7,10.6253]
[1772130571391,7.03706348,84.74,84.692,3.73885943]
[1772130572391,3.8236347,84.739,84.699,10.6254]
[1772130572588,3.21342878,84.73,84.699,10.6254]
[1772130573091,3.21342878,84.74,84.692,3.73885943]
[1772130573993,3.8236347,84.759,84.711,3.73885943]
[1772130574493,3.8236347,84.759,84.72,10.6228]
[1772130574694,3.21342878,84.75,84.711,3.73885943]
[1772130575289,3.21342878,84.75,84.72,10.6228]
[1772130576389,10.617,84.767,84.728,3.81918395]
[1772130576692,3.21342878,84.76,84.728,3.81918395]
[1772130577895,3.21342878,84.76,84.729,10.6217]
[1772130578298,3.71142786,84.769,84.73,3.81918395]
[1772130578592,3.21342878,84.77,84.73,3.81918395]
[1772130578994,3.21342878,84.78,84.739,14.43958395]
[1772130579292,3.21342878,84.78,84.74,3.81918395]
[1772130579492,3.21342878,84.77,84.74,3.81918395]
[1772130580594,3.21342878,84.77,84.721,3.55684531]
[1772130580996,3.71142786,84.779,84.734,10.6211]
[1772130581197,3.21342878,84.77,84.734,10.6211]
[1772130581393,6.92362293,84.75,84.707,3.55684531]
[1772130581700,3.21342878,84.75,84.707,3.55684531]
[1772130582400,5.30955473,84.796,84.707,3.55684531]
[1772130582401,3.21342878,84.74,84.707,3.55684531]
[1772130582796,3.21342878,84.74,84.696,10.6258]
[1772130582996,3.21342878,84.74,84.696,14.18264531]
[1772130584603,3.21342878,84.73,84.696,14.18264531]
[1772130584803,10.6205,84.739,84.696,14.18264531]
[1772130584998,10.6208,84.737,84.696,14.18264531]
[1772130585198,3.21342878,84.72,84.687,10.627]
[1772130585598,3.71019415,84.729,84.687,10.627]
[1772130586396,3.71019415,84.746,84.694,3.55684531]
[1772130586601,3.21342878,84.74,84.694,3.55684531]